fUST/lending_fUST_20250704
["ID","MTS","AMOUNT","RATE_DAILY","PERIOD"]
[369510112,1751604642573,-1786.15,0.00016986,2]
[369510114,1751604642583,-1611.28,0.00016986,2]
[369510116,1751604642592,-460.0,0.00016986,2]
[369510118,1751604642601,-1229.42,0.00016986,2]
[369510120,1751604642610,-460.0,0.00016986,2]
[369510122,1751604642621,-460.0,0.00016986,2]
[369510124,1751604642630,-460.0,0.00016986,2]
[369510126,1751604642639,-528.43,0.00016986,2]
[369510128,1751604642649,-1020.96,0.00016986,2]
[369510130,1751604642659,-502.83,0.00016986,2]
[369510132,1751604642668,-460.0,0.00016986,2]
[369510134,1751604642677,-1496.74,0.00016986,2]
[369510136,1751604642686,-849.55,0.00016986,2]
[369510138,1751604642696,-460.0,0.00016986,2]
[369510140,1751604642705,-460.0,0.00016986,2]
[369510142,1751604642714,-1374.26,0.00016986,2]
[369510144,1751604642723,-3781.36,0.00016986,2]
[369510146,1751604642732,-460.0,0.00016986,2]
[369510148,1751604642741,-460.0,0.00016986,2]
[369510150,1751604642751,-460.0,0.00016986,2]
[369510152,1751604642760,-761.74,0.00016986,2]
[369510154,1751604642769,-654.79,0.00016986,2]
[369510156,1751604642779,-1079.27,0.00016986,2]
[369510158,1751604642788,-460.0,0.00016986,2]
[369510160,1751604642797,-311.61270558,0.00016986,2]
[369510162,1751604642807,-460.0,0.00016986,2]
[369510164,1751604642816,-460.0,0.00016986,2]
[369510166,1751604642825,-967.0,0.00016994,2]
[369510168,1751604642834,-646.0,0.00016994,2]
[369510170,1751604642843,-2152.0,0.00016994,2]
[369510172,1751604642852,-406.0,0.00016994,2]
[369510175,1751604642866,-426.698,0.00016994,2]
[369510177,1751604642875,-366.4191338,0.00017,2]
[369510178,1751604642884,-4439.27320297,0.00017176,2]
[369510181,1751604642894,-460.0,0.0001726,2]
[369510182,1751604642903,-460.0,0.0001726,2]
[369510185,1751604642912,-460.0,0.0001726,2]
[369510187,1751604642921,-492.18,0.0001726,2]
[369510189,1751604642930,-460.0,0.0001726,2]
[369510191,1751604642939,-193.41564927,0.0001726,2]
[369510193,1751604642948,-1277.65,0.0001726,2]
[369510195,1751604642957,-460.0,0.0001726,2]
[369510197,1751604642966,-460.0,0.0001726,2]
[369510199,1751604642975,-460.0,0.0001726,2]
[369510201,1751604642984,-867.18,0.0001726,2]
[369510203,1751604642993,-460.0,0.0001726,2]
[369510205,1751604643002,-2202.29,0.0001726,2]
[369510207,1751604643011,-1293.38,0.0001726,2]
[369510209,1751604643020,-3591.81,0.0001726,2]
[369510211,1751604643030,-505.67,0.0001726,2]
[369510213,1751604643040,-460.0,0.0001726,2]
[369510215,1751604643049,-1371.69,0.0001726,2]
[369510217,1751604643059,-1552.07,0.0001726,2]
[369510219,1751604643068,-460.0,0.0001726,2]
[369510221,1751604643079,-1149.92,0.0001726,2]
[369510223,1751604643088,-335.83062207,0.0001726,2]
[369510225,1751604643097,-495.42,0.0001726,2]
[369510227,1751604643106,-1928.25,0.0001726,2]
[369510229,1751604643116,-460.0,0.0001726,2]
[369510231,1751604643125,-460.0,0.0001726,2]
[369510233,1751604643135,-580.29,0.0001726,2]
[369510235,1751604643145,-2392.35,0.0001726,2]
[369510237,1751604643154,-746.15,0.0001726,2]
[369510239,1751604643163,-491.58,0.0001726,2]
[369510241,1751604643175,-460.0,0.0001726,2]
[369510243,1751604643185,-485.74,0.0001726,2]
[369510245,1751604643194,-664.6,0.0001726,2]
[369510247,1751604643204,-1521.05,0.0001726,2]
[369510249,1751604643214,-460.0,0.0001726,2]
[369510251,1751604643224,-1786.15,0.0001726,2]
[369510254,1751604643233,-1611.28,0.0001726,2]
[369510256,1751604643243,-460.0,0.0001726,2]
[369510258,1751604643252,-1229.42,0.0001726,2]
[369510260,1751604643262,-460.0,0.0001726,2]
[369510262,1751604643272,-460.0,0.0001726,2]
[369510264,1751604643281,-460.0,0.0001726,2]
[369510266,1751604643291,-528.43,0.0001726,2]
[369510268,1751604643300,-1020.96,0.0001726,2]
[369510270,1751604643310,-502.83,0.0001726,2]
[369510272,1751604643319,-460.0,0.0001726,2]
[369510274,1751604643329,-1496.74,0.0001726,2]
[369510276,1751604643338,-849.55,0.0001726,2]
[369510278,1751604643348,-460.0,0.0001726,2]
[369510281,1751604643358,-460.0,0.0001726,2]
[369510283,1751604643367,-1374.26,0.0001726,2]
[369510285,1751604643376,-3781.36,0.0001726,2]
[369510287,1751604643386,-460.0,0.0001726,2]
[369510289,1751604643395,-460.0,0.0001726,2]
[369510291,1751604643405,-761.74,0.0001726,2]
[369510293,1751604643413,-654.79,0.0001726,2]
[369510295,1751604643422,-1079.27,0.0001726,2]
[369510297,1751604643432,-460.0,0.0001726,2]
[369510299,1751604643441,-460.0,0.0001726,2]
[369510301,1751604643450,-4439.27320297,0.00017452,2]
[369510303,1751604643460,-250.15759984,0.00017471,2]
[369510305,1751604643469,-460.0,0.00017534,2]
[369510306,1751604643478,-460.0,0.00017534,2]
[369510309,1751604643487,-460.0,0.00017534,2]
[369510311,1751604643496,-492.18,0.00017534,2]
[369510313,1751604643506,-460.0,0.00017534,2]
[369510315,1751604643515,-1277.65,0.00017534,2]
[369510317,1751604643525,-460.0,0.00017534,2]
[369510318,1751604643534,-460.0,0.00017534,2]
[369510320,1751604643546,-460.0,0.00017534,2]
[369510322,1751604643555,-867.18,0.00017534,2]
[369510324,1751604643565,-460.0,0.00017534,2]
[369510326,1751604643575,-2202.29,0.00017534,2]
[369510328,1751604643586,-1293.38,0.00017534,2]
[369510330,1751604643595,-3591.81,0.00017534,2]
[369510332,1751604643605,-505.67,0.00017534,2]
[369510334,1751604643615,-460.0,0.00017534,2]
[369510336,1751604643625,-1371.69,0.00017534,2]
[369510338,1751604643634,-1552.07,0.00017534,2]
[369510340,1751604643643,-460.0,0.00017534,2]
[369510342,1751604643653,-1149.92,0.00017534,2]
[369510344,1751604643663,-495.42,0.00017534,2]
[369510346,1751604643672,-1928.25,0.00017534,2]
[369510348,1751604643682,-460.0,0.00017534,2]
[369510350,1751604643691,-460.0,0.00017534,2]
[369510352,1751604643700,-580.29,0.00017534,2]
[369510354,1751604643709,-2392.35,0.00017534,2]
[369510356,1751604643719,-746.15,0.00017534,2]
[369510358,1751604643728,-491.58,0.00017534,2]
[369510360,1751604643738,-460.0,0.00017534,2]
[369510363,1751604643747,-485.74,0.00017534,2]
[369510366,1751604643757,-664.6,0.00017534,2]
[369510381,1751604643885,-460.0,0.00017534,2]
[369510383,1751604643897,-1521.05,0.00017534,2]
[369510385,1751604643907,-1786.15,0.00017534,2]
[369510387,1751604643916,-1611.28,0.00017534,2]
[369510389,1751604643926,-460.0,0.00017534,2]
[369510391,1751604643935,-1229.42,0.00017534,2]
[369510393,1751604643945,-460.0,0.00017534,2]
[369510395,1751604643954,-460.0,0.00017534,2]
[369510397,1751604643964,-460.0,0.00017534,2]
[369510399,1751604643973,-528.43,0.00017534,2]
[369510401,1751604643984,-1020.96,0.00017534,2]
[369510404,1751604643993,-502.83,0.00017534,2]
[369510406,1751604644003,-460.0,0.00017534,2]
[369510408,1751604644012,-1496.74,0.00017534,2]
[369510410,1751604644023,-849.55,0.00017534,2]
[369510412,1751604644032,-460.0,0.00017534,2]
[369510414,1751604644042,-460.0,0.00017534,2]
[369510416,1751604644052,-1374.26,0.00017534,2]
[369510418,1751604644061,-3781.36,0.00017534,2]
[369510420,1751604644071,-460.0,0.00017534,2]
[369510422,1751604644080,-460.0,0.00017534,2]
[369510424,1751604644090,-761.74,0.00017534,2]
[369510426,1751604644100,-654.79,0.00017534,2]
[369510428,1751604644109,-1079.27,0.00017534,2]
[369510430,1751604644118,-460.0,0.00017534,2]
[369510432,1751604644128,-460.0,0.00017534,2]
[369510434,1751604644137,-178.091,0.00017695,2]
[369510437,1751604644148,-286.9,0.00017727,2]
[369510439,1751604644157,-4439.27320297,0.00017728,2]
[369510441,1751604644167,-877.049,0.00017753,2]
[369510443,1751604644176,-215.0738,0.00017787,2]
[369510445,1751604644187,-460.0,0.00017808,2]
[369510447,1751604644197,-460.0,0.00017808,2]
[369510449,1751604644206,-460.0,0.00017808,2]
[369510451,1751604644216,-492.18,0.00017808,2]
[369510453,1751604644225,-460.0,0.00017808,2]
[369510455,1751604644235,-1277.65,0.00017808,2]
[369510457,1751604644244,-460.0,0.00017808,2]
[369510459,1751604644253,-460.0,0.00017808,2]
[369510461,1751604644262,-460.0,0.00017808,2]
[369510463,1751604644272,-867.18,0.00017808,2]
[369510465,1751604644281,-460.0,0.00017808,2]
[369510467,1751604644291,-2202.29,0.00017808,2]
[369510469,1751604644301,-1293.38,0.00017808,2]
[369510471,1751604644311,-3591.81,0.00017808,2]
[369510473,1751604644320,-505.67,0.00017808,2]
[369510475,1751604644330,-460.0,0.00017808,2]
[369510477,1751604644339,-1371.69,0.00017808,2]
[369510479,1751604644348,-460.0,0.00017808,2]
[369510481,1751604644357,-1552.07,0.00017808,2]
[369510483,1751604644366,-1149.92,0.00017808,2]
[369510485,1751604644376,-495.42,0.00017808,2]
[369510487,1751604644386,-1928.25,0.00017808,2]
[369510490,1751604644396,-460.0,0.00017808,2]
[369510492,1751604644405,-460.0,0.00017808,2]
[369510493,1751604644414,-580.29,0.00017808,2]
[369510496,1751604644424,-2392.35,0.00017808,2]
[369510498,1751604644433,-746.15,0.00017808,2]
[369510500,1751604644442,-491.58,0.00017808,2]
[369510502,1751604644452,-460.0,0.00017808,2]
[369510504,1751604644461,-485.74,0.00017808,2]
[369510506,1751604644470,-664.6,0.00017808,2]
[369510507,1751604644480,-460.0,0.00017808,2]
[369510510,1751604644489,-1786.15,0.00017808,2]
[369510511,1751604644499,-1521.05,0.00017808,2]
[369510514,1751604644508,-1611.28,0.00017808,2]
[369510515,1751604644517,-460.0,0.00017808,2]
[369510518,1751604644527,-1229.42,0.00017808,2]
[369510520,1751604644537,-460.0,0.00017808,2]
[369510522,1751604644552,-460.0,0.00017808,2]
[369510523,1751604644561,-460.0,0.00017808,2]
[369510526,1751604644571,-528.43,0.00017808,2]
[369510528,1751604644580,-1020.96,0.00017808,2]
[369510529,1751604644590,-502.83,0.00017808,2]
[369510531,1751604644599,-460.0,0.00017808,2]
[369510533,1751604644609,-1496.74,0.00017808,2]
[369510535,1751604644620,-849.55,0.00017808,2]
[369510537,1751604644629,-460.0,0.00017808,2]
[369510539,1751604644639,-460.0,0.00017808,2]
[369510541,1751604644649,-1374.26,0.00017808,2]
[369510543,1751604644658,-3781.36,0.00017808,2]
[369510545,1751604644667,-481.24304663,0.00017808,2]
[369510547,1751604644677,-460.0,0.00017808,2]
[369510549,1751604644686,-761.74,0.00017808,2]
[369510551,1751604644696,-654.79,0.00017808,2]
[369510553,1751604644705,-1079.27,0.00017808,2]
[369510555,1751604644714,-460.0,0.00017808,2]
[369510557,1751604644724,-460.0,0.00017808,2]
[369510559,1751604644733,-163.462,0.00017808,2]
[369510561,1751604644742,-500.0,0.00017853,2]
[369510563,1751604644752,-496.85038165,0.00017883,2]
[369510565,1751604644762,-500.0,0.00017883,2]
[369510568,1751604644772,-332.14239049,0.00017883,2]
[369510570,1751604644782,-500.0,0.00017883,2]
[369510572,1751604644791,-500.0,0.00017883,2]
[369510574,1751604644800,-500.0,0.00017883,2]
[369510576,1751604644809,-500.0,0.00017883,2]
[369510577,1751604644819,-431.04243503,0.00017883,2]
[369510579,1751604644828,-4439.27320297,0.00018003,2]
[369510582,1751604644839,-151.0,0.00018004,2]
[369510584,1751604644848,-151.0,0.00018004,2]
[369510586,1751604644858,-490.11044,0.00018078,2]
[369510588,1751604644867,-460.0,0.00018082,2]
[369510590,1751604644876,-460.0,0.00018082,2]
[369510592,1751604644886,-460.0,0.00018082,2]
[369510594,1751604644895,-492.18,0.00018082,2]
[369510596,1751604644904,-460.0,0.00018082,2]
[369510598,1751604644913,-1277.65,0.00018082,2]
[369510600,1751604644922,-460.0,0.00018082,2]
[369510602,1751604644932,-460.0,0.00018082,2]
[369510604,1751604644941,-460.0,0.00018082,2]
[369510606,1751604644951,-867.18,0.00018082,2]
[369510608,1751604644960,-460.0,0.00018082,2]
[369510610,1751604644969,-2202.29,0.00018082,2]
[369510612,1751604644978,-1293.38,0.00018082,2]
[369510614,1751604644988,-3591.81,0.00018082,2]
[369510616,1751604644997,-505.67,0.00018082,2]
[369510618,1751604645007,-460.0,0.00018082,2]
[369510620,1751604645016,-1371.69,0.00018082,2]
[369510622,1751604645025,-460.0,0.00018082,2]
[369510624,1751604645035,-1552.07,0.00018082,2]
[369510626,1751604645044,-1149.92,0.00018082,2]
[369510628,1751604645054,-495.42,0.00018082,2]
[369510630,1751604645063,-1928.25,0.00018082,2]
[369510632,1751604645073,-460.0,0.00018082,2]
[369510634,1751604645083,-460.0,0.00018082,2]
[369510636,1751604645092,-580.29,0.00018082,2]
[369510638,1751604645102,-2392.35,0.00018082,2]
[369510640,1751604645111,-746.15,0.00018082,2]
[369510642,1751604645120,-491.58,0.00018082,2]
[369510644,1751604645130,-460.0,0.00018082,2]
[369510646,1751604645139,-485.74,0.00018082,2]
[369510648,1751604645148,-664.6,0.00018082,2]
[369510650,1751604645157,-460.0,0.00018082,2]
[369510652,1751604645166,-1786.15,0.00018082,2]
[369510654,1751604645176,-1521.05,0.00018082,2]
[369510656,1751604645185,-1611.28,0.00018082,2]
[369510658,1751604645195,-460.0,0.00018082,2]
[369510660,1751604645204,-1229.42,0.00018082,2]
[369510662,1751604645215,-460.0,0.00018082,2]
[369510664,1751604645224,-460.0,0.00018082,2]
[369510666,1751604645233,-460.0,0.00018082,2]
[369510668,1751604645242,-528.43,0.00018082,2]
[369510670,1751604645252,-1020.96,0.00018082,2]
[369510672,1751604645261,-502.83,0.00018082,2]
[369510674,1751604645271,-460.0,0.00018082,2]
[369510676,1751604645280,-1496.74,0.00018082,2]
[369510678,1751604645290,-849.55,0.00018082,2]
[369510680,1751604645299,-460.0,0.00018082,2]
[369510682,1751604645309,-460.0,0.00018082,2]
[369510684,1751604645318,-1374.26,0.00018082,2]
[369510686,1751604645328,-3781.36,0.00018082,2]
[369510688,1751604645337,-460.0,0.00018082,2]
[369510690,1751604645346,-761.74,0.00018082,2]
[369510692,1751604645355,-654.79,0.00018082,2]
[369510694,1751604645366,-1079.27,0.00018082,2]
[369510696,1751604645375,-1369.921618,0.00018082,2]
[369510698,1751604645385,-1369.921618,0.00018082,2]
[369510700,1751604645395,-460.0,0.00018082,2]
[369510702,1751604645404,-284.08348421,0.00018082,2]
[369510704,1751604645414,-151.0,0.00018082,2]
[369510706,1751604645423,-250.15759984,0.00018098,2]
[369510708,1751604645432,-500.0,0.00018144,2]
[369510710,1751604645442,-500.0,0.00018144,2]
[369510712,1751604645451,-502.76594591,0.00018144,2]
[369510713,1751604645460,-286.9,0.0001816,2]
[369510716,1751604645470,-967.0,0.00018164,2]
[369510717,1751604645479,-1314.0,0.000182,2]
[369510720,1751604645489,-366.5311405,0.00018274,2]
[369510721,1751604645498,-366.5311405,0.00018274,2]
[369510724,1751604645508,-366.5311405,0.00018274,2]
[369510726,1751604645517,-366.5311405,0.00018274,2]
[369510728,1751604645527,-4439.27320297,0.00018279,2]
[369510730,1751604645536,-190.63004398,0.00018295,2]
[369510731,1751604645548,-500.0,0.00018295,2]
[369510733,1751604645558,-500.0,0.00018295,2]
[369510735,1751604645567,-500.0,0.00018295,2]
[369510737,1751604645576,-366.5311405,0.00018301,2]
[369510740,1751604645587,-366.5311405,0.00018301,2]
[369510742,1751604645597,-366.5311405,0.00018301,2]
[369510744,1751604645607,-366.5311405,0.00018301,2]
[369510745,1751604645618,-151.0,0.00018321,2]
[369510747,1751604645628,-151.0,0.00018321,2]
[369510749,1751604645637,-151.0,0.00018321,2]
[369510752,1751604645648,-366.5311405,0.00018329,2]
[369510753,1751604645657,-152.792112,0.00018356,2]
[369510756,1751604645667,-266.442378,0.00018356,2]
[369510758,1751604645677,-151.0,0.00018356,2]
[369510759,1751604645686,-151.0,0.00018356,2]
[369510761,1751604645695,-151.0,0.00018356,2]
[369510764,1751604645705,-151.0,0.00018356,2]
[369510765,1751604645714,-224.160924,0.00018356,2]
[369510767,1751604645723,-224.160924,0.00018356,2]
[369510770,1751604645732,-460.0,0.00018356,2]
[369510772,1751604645742,-153.560647,0.00018356,2]
[369510774,1751604645751,-151.0,0.00018356,2]
[369510776,1751604645762,-151.0,0.00018356,2]
[369510778,1751604645771,-151.0,0.00018356,2]
[369510780,1751604645781,-151.0,0.00018356,2]
[369510781,1751604645791,-151.0,0.00018356,2]
[369510784,1751604645800,-151.0,0.00018356,2]
[369510786,1751604645810,-151.0,0.00018356,2]
[369510788,1751604645819,-151.0,0.00018356,2]
[369510789,1751604645828,-151.0,0.00018356,2]
[369510791,1751604645838,-151.0,0.00018356,2]
[369510793,1751604645847,-151.217678,0.00018356,2]
[369510796,1751604645864,-151.476396,0.00018356,2]
[369510798,1751604645874,-151.0,0.00018356,2]
[369510800,1751604645883,-151.0,0.00018356,2]
[369510802,1751604645892,-258.759449,0.00018356,2]
[369510804,1751604645902,-460.0,0.00018356,2]
[369510806,1751604645911,-460.0,0.00018356,2]
[369510808,1751604645920,-492.18,0.00018356,2]
[369510809,1751604645929,-460.0,0.00018356,2]
[369510811,1751604645938,-280.491531,0.00018356,2]
[369510813,1751604645947,-280.491531,0.00018356,2]
[369510815,1751604645957,-151.0,0.00018356,2]
[369510818,1751604645966,-155.90727,0.00018356,2]
[369510819,1751604645975,-155.90727,0.00018356,2]
[369510821,1751604645985,-1277.65,0.00018356,2]
[369510824,1751604645995,-460.0,0.00018356,2]
[369510826,1751604646006,-460.0,0.00018356,2]
[369510828,1751604646016,-460.0,0.00018356,2]
[369510830,1751604646025,-151.0,0.00018356,2]
[369510832,1751604646035,-867.18,0.00018356,2]
[369510834,1751604646044,-151.0,0.00018356,2]
[369510836,1751604646053,-151.0,0.00018356,2]
[369510838,1751604646063,-460.0,0.00018356,2]
[369510840,1751604646072,-2202.29,0.00018356,2]
[369510842,1751604646081,-1293.38,0.00018356,2]
[369510846,1751604646091,-3591.81,0.00018356,2]
[369510848,1751604646101,-151.0,0.00018356,2]
[369510850,1751604646110,-505.67,0.00018356,2]
[369510852,1751604646120,-460.0,0.00018356,2]
[369510854,1751604646129,-1371.69,0.00018356,2]
[369510856,1751604646139,-460.0,0.00018356,2]
[369510858,1751604646148,-1552.07,0.00018356,2]
[369510860,1751604646157,-151.0,0.00018356,2]
[369510862,1751604646166,-1149.92,0.00018356,2]
[369510864,1751604646176,-495.42,0.00018356,2]
[369510866,1751604646186,-1928.25,0.00018356,2]
[369510868,1751604646195,-460.0,0.00018356,2]
[369510870,1751604646204,-460.0,0.00018356,2]
[369510872,1751604646214,-580.29,0.00018356,2]
[369510874,1751604646224,-2392.35,0.00018356,2]
[369510875,1751604646233,-151.0,0.00018356,2]
[369510877,1751604646243,-746.15,0.00018356,2]
[369510880,1751604646252,-491.58,0.00018356,2]
[369510881,1751604646262,-460.0,0.00018356,2]
[369510883,1751604646271,-485.74,0.00018356,2]
[369510884,1751604646280,-664.6,0.00018356,2]
[369510885,1751604646289,-460.0,0.00018356,2]
[369510886,1751604646299,-1786.15,0.00018356,2]
[369510887,1751604646308,-1521.05,0.00018356,2]
[369510888,1751604646318,-1611.28,0.00018356,2]
[369510889,1751604646328,-278.85945925,0.00018356,2]
[369510890,1751604646337,-1229.42,0.00018356,2]
[369510891,1751604646347,-460.0,0.00018356,2]
[369510892,1751604646357,-151.0,0.00018356,2]
[369510893,1751604646366,-460.0,0.00018356,2]
[369510894,1751604646376,-460.0,0.00018356,2]
[369510895,1751604646385,-528.43,0.00018356,2]
[369510896,1751604646396,-1020.96,0.00018356,2]
[369510897,1751604646406,-502.83,0.00018356,2]
[369510898,1751604646415,-190.7194845,0.00018356,2]
[369510899,1751604646425,-1496.74,0.00018356,2]
[369510900,1751604646435,-849.55,0.00018356,2]
[369510901,1751604646444,-460.0,0.00018356,2]
[369510902,1751604646454,-460.0,0.00018356,2]
[369510903,1751604646464,-1374.26,0.00018356,2]
[369510904,1751604646478,-3781.36,0.00018356,2]
[369510905,1751604646487,-460.0,0.00018356,2]
[369510906,1751604646497,-761.74,0.00018356,2]
[369510907,1751604646507,-985.98404904,0.00018356,2]
[369510908,1751604646517,-654.79,0.00018356,2]
[369510909,1751604646527,-3939.99225998,0.00018356,2]
[369510921,1751604646647,-1079.27,0.00018356,2]
[369510923,1751604646656,-151.0,0.00018356,2]
[369510925,1751604646666,-460.0,0.00018356,2]
[369510927,1751604646676,-151.0,0.00018356,2]
[369510929,1751604646685,-159.2162368,0.00018356,2]
[369510931,1751604646695,-575.0409573,0.00018356,2]
[369510933,1751604646704,-500.6418898,0.00018405,2]
[369510935,1751604646714,-459.17432177,0.00018405,2]
[369510937,1751604646723,-500.0,0.00018405,2]
[369510939,1751604646732,-1000.0,0.00018431,2]
[369510941,1751604646742,-375.36883001,0.00018431,2]
[369510943,1751604646751,-1045.38440491,0.00018431,2]
[369510945,1751604646762,-454.46365255,0.00018431,2]
[369510947,1751604646772,-1000.0,0.00018431,2]
[369510949,1751604646782,-2256.99847824,0.00018447,2]
[369510951,1751604646791,-587.0,0.00018448,2]
[369510953,1751604646801,-159.4209444,0.00018466,2]
[369510955,1751604646810,-575.7832369,0.00018466,2]
[369510957,1751604646819,-200.0,0.0001847,2]
[369510959,1751604646829,-575.7832369,0.00018548,2]
[369510961,1751604646838,-159.4209444,0.00018548,2]
[369510963,1751604646847,-159.4209444,0.00018548,2]
[369510964,1751604646862,-575.7832369,0.00018548,2]
[369510966,1751604646872,-1369.921618,0.00018555,2]
[369510969,1751604646881,-1369.921618,0.00018555,2]
[369510971,1751604646890,-4439.27320297,0.00018555,2]
[369510973,1751604646900,-286.9,0.00018593,3]
[369510975,1751604646909,-5000.0,0.00018596,2]
[369510977,1751604646919,-460.0,0.0001863,2]
[369510979,1751604646928,-151.0,0.0001863,2]
[369510981,1751604646937,-151.0,0.0001863,2]
[369510983,1751604646947,-151.0,0.0001863,2]
[369510985,1751604646956,-151.0,0.0001863,2]
[369510987,1751604646965,-151.0,0.0001863,2]
[369510989,1751604646975,-151.0,0.0001863,2]
[369510991,1751604646984,-151.0,0.0001863,2]
[369510993,1751604646994,-220.679372,0.0001863,2]
[369510995,1751604647003,-151.0,0.0001863,2]
[369510997,1751604647013,-460.0,0.0001863,2]
[369510999,1751604647022,-460.0,0.0001863,2]
[369511001,1751604647033,-492.18,0.0001863,2]
[369511003,1751604647042,-460.0,0.0001863,2]
[369511005,1751604647052,-1277.65,0.0001863,2]
[369511007,1751604647061,-460.0,0.0001863,2]
[369511009,1751604647071,-460.0,0.0001863,2]
[369511011,1751604647080,-460.0,0.0001863,2]
[369511013,1751604647090,-867.18,0.0001863,2]
[369511015,1751604647100,-151.0,0.0001863,2]
[369511017,1751604647109,-460.0,0.0001863,2]
[369511019,1751604647118,-2202.29,0.0001863,2]
[369511021,1751604647128,-1293.38,0.0001863,2]
[369511023,1751604647137,-3591.81,0.0001863,2]
[369511025,1751604647146,-505.67,0.0001863,2]
[369511027,1751604647156,-460.0,0.0001863,2]
[369511029,1751604647165,-1371.69,0.0001863,2]
[369511031,1751604647175,-460.0,0.0001863,2]
[369511033,1751604647184,-1552.07,0.0001863,2]
[369511035,1751604647193,-1149.92,0.0001863,2]
[369511037,1751604647203,-495.42,0.0001863,2]
[369511039,1751604647213,-1928.25,0.0001863,2]
[369511041,1751604647224,-460.0,0.0001863,2]
[369511043,1751604647233,-460.0,0.0001863,2]
[369511045,1751604647243,-580.29,0.0001863,2]
[369511047,1751604647252,-2392.35,0.0001863,2]
[369511049,1751604647262,-746.15,0.0001863,2]
[369511051,1751604647272,-491.58,0.0001863,2]
[369511053,1751604647282,-460.0,0.0001863,2]
[369511055,1751604647292,-485.74,0.0001863,2]
[369511057,1751604647301,-664.6,0.0001863,2]
[369511059,1751604647311,-565.31151423,0.0001863,2]
[369511061,1751604647320,-1786.15,0.0001863,2]
[369511063,1751604647330,-1521.05,0.0001863,2]
[369511065,1751604647339,-1611.28,0.0001863,2]
[369511067,1751604647348,-1229.42,0.0001863,2]
[369511069,1751604647357,-460.0,0.0001863,2]
[369511071,1751604647366,-151.0,0.0001863,2]
[369511073,1751604647375,-460.0,0.0001863,2]
[369511075,1751604647385,-460.0,0.0001863,2]
[369511077,1751604647394,-528.43,0.0001863,2]
[369511079,1751604647404,-1020.96,0.0001863,2]
[369511081,1751604647413,-502.83,0.0001863,2]
[369511083,1751604647422,-1496.74,0.0001863,2]
[369511085,1751604647432,-849.55,0.0001863,2]
[369511087,1751604647442,-460.0,0.0001863,2]
[369511089,1751604647451,-460.0,0.0001863,2]
[369511091,1751604647460,-1374.26,0.0001863,2]
[369511093,1751604647469,-3781.36,0.0001863,2]
[369511095,1751604647479,-460.0,0.0001863,2]
[369511097,1751604647488,-761.74,0.0001863,2]
[369511099,1751604647497,-654.79,0.0001863,2]
[369511101,1751604647507,-1079.27,0.0001863,2]
[369511103,1751604647516,-460.0,0.0001863,2]
[369511105,1751604647525,-4000.0,0.00018662,2]
[369511108,1751604647534,-151.0,0.00018662,2]
[369511110,1751604647548,-1000.0,0.00018692,2]
[369511112,1751604647556,-1000.0,0.00018692,2]
[369511114,1751604647565,-1415.81,0.000187,2]
[369511116,1751604647574,-250.15759984,0.00018725,2]